bitfinex-derivatives/quotes_SOLF0:USTF0_20260311
["timestamp","ask_amount","ask_price","bid_price","bid_amount"]
[1773264088022,8.80963484,87.183,87.16,3.7084936]
[1773264088224,8.80963484,87.182,87.16,3.7084936]
[1773264088419,8.80963484,87.181,87.16,3.7084936]
[1773264088618,8.80963484,87.18,87.16,3.7084936]
[1773264088818,8.80963484,87.179,87.16,3.7084936]
[1773264089024,2.64609848,87.192,87.16,3.7084936]
[1773264089219,8.83122171,87.191,87.16,3.7084936]
[1773264089425,8.8312731,87.19,87.16,3.7084936]
[1773264089725,8.8312731,87.189,87.16,3.7084936]
[1773264090025,8.8312731,87.188,87.16,3.7084936]
[1773264090220,8.8312731,87.187,87.16,3.7084936]
[1773264090420,8.8312731,87.186,87.16,3.7084936]
[1773264090622,8.8312731,87.185,87.16,3.7084936]
[1773264090821,8.8312731,87.184,87.16,3.7084936]
[1773264091021,8.8312731,87.183,87.16,3.7084936]
[1773264091221,8.8312731,87.182,87.16,3.7084936]
[1773264091424,8.8312731,87.181,87.16,3.7084936]
[1773264091624,8.8312731,87.18,87.16,3.7084936]
[1773264091926,8.8312731,87.179,87.16,3.7084936]
[1773264092226,8.8312731,87.178,87.16,3.7084936]
[1773264092426,8.8312731,87.177,87.16,3.7084936]
[1773264092628,2.64609848,87.192,87.16,3.7084936]
[1773264092829,8.83294793,87.191,87.162,3.7084936]
[1773264093024,8.83294793,87.19,87.162,3.7084936]
[1773264093228,8.83294793,87.189,87.162,3.7084936]
[1773264093529,8.83294793,87.188,87.162,3.7084936]
[1773264093730,8.83294793,87.187,87.162,3.7084936]
[1773264094028,8.83294793,87.186,87.162,3.7084936]
[1773264094229,2.64186766,87.202,87.162,3.7084936]
[1773264094429,8.83069726,87.201,87.17,10.324]
[1773264094629,8.83069726,87.2,87.17,10.324]
[1773264094826,8.83069726,87.199,87.17,10.324]
[1773264095020,2.64186766,87.202,87.17,10.324]
[1773264095021,8.83069726,87.198,87.17,10.324]
[1773264095220,8.83069726,87.197,87.17,10.324]
[1773264095422,8.83069726,87.196,87.17,10.324]
[1773264095620,8.83069726,87.195,87.17,10.324]
[1773264095825,8.83069726,87.194,87.17,10.324]
[1773264096023,8.83069726,87.193,87.17,10.324]
[1773264096228,8.83069726,87.192,87.17,10.324]
[1773264096428,8.83069726,87.191,87.17,10.324]
[1773264096630,8.83069726,87.19,87.17,10.324]
[1773264096932,8.83069726,87.189,87.17,10.324]
[1773264097133,8.83069726,87.188,87.17,10.324]
[1773264097431,2.64186766,87.202,87.17,10.324]
[1773264097633,8.82828247,87.201,87.17,10.324]
[1773264097832,2.64186766,87.202,87.17,10.324]
[1773264097833,8.82828247,87.2,87.17,10.324]
[1773264098032,8.82828247,87.199,87.17,10.324]
[1773264098232,8.82828247,87.198,87.17,10.324]
[1773264098429,8.82828247,87.197,87.17,10.324]
[1773264098635,8.82828247,87.196,87.17,10.324]
[1773264098833,8.82828247,87.195,87.17,10.324]
[1773264099034,8.82828247,87.194,87.17,14.0324936]
[1773264099348,8.82828247,87.193,87.17,14.0324936]
[1773264099529,2.6363025,87.22,87.174,3.7084936]
[1773264101327,2.6363025,87.22,87.181,10.322]
[1773264101531,2.6363025,87.22,87.182,3.73978938]
[1773264103630,2.6363025,87.22,87.184,10.322]
[1773264103835,2.6363025,87.22,87.185,3.73978938]
[1773264104432,2.62129219,87.232,87.192,3.73978938]
[1773264104635,2.62497485,87.254,87.201,3.73978938]
[1773264106338,2.62497485,87.254,87.218,10.318]
[1773264106738,2.62497485,87.254,87.218,14.05778938]
[1773264107036,2.62497485,87.254,87.219,3.73978938]
[1773264107231,14.44,87.257,87.219,3.73978938]
[1773264107429,2.61481008,87.276,87.229,3.73978938]
[1773264108438,2.61481008,87.276,87.233,3.73978938]
[1773264109431,2.61481008,87.276,87.234,14.05578938]
[1773264110141,2.61481008,87.276,87.235,3.76009477]
[1773264121340,2.61481008,87.276,87.239,3.76009477]
[1773264122346,2.61481008,87.276,87.244,10.315]
[1773264125148,2.61481008,87.276,87.244,14.07509477]
[1773264131951,2.61481008,87.276,87.245,3.76009477]
[1773264132951,2.61481008,87.276,87.177,21.38086559]
[1773264132952,10.31,87.289,87.247,3.76009477]
[1773264133654,12.95838234,87.289,87.247,3.76009477]
[1773264134350,2.64838234,87.295,87.251,3.76009477]
[1773264135451,12.95636563,87.293,87.251,3.76009477]
[1773264135656,2.64736563,87.292,87.251,3.76009477]
[1773264137257,2.73974969,87.288,87.251,3.76009477]
[1773264138453,2.73974969,87.286,87.251,3.76009477]
[1773264140863,2.73974969,87.286,87.253,3.68249682]
[1773264142468,14.44,87.304,87.255,3.68249682]
[1773264142469,2.73285392,87.296,87.255,3.68249682]
[1773264144464,2.73285392,87.296,87.258,3.68249682]
[1773264147169,8.64205494,87.295,87.258,3.68249682]
[1773264147473,8.64205494,87.294,87.258,3.68249682]
[1773264147769,8.64205494,87.293,87.258,3.68249682]
[1773264147966,8.64205494,87.295,87.258,3.68249682]
[1773264148163,8.64205494,87.294,87.258,3.68249682]
[1773264148366,8.64205494,87.293,87.258,3.68249682]
[1773264148567,8.64205494,87.292,87.258,3.68249682]
[1773264148767,8.64205494,87.291,87.258,3.68249682]
[1773264148969,8.64205494,87.29,87.258,3.68249682]
[1773264149267,8.68269183,87.289,87.258,3.68249682]
[1773264149467,8.68269183,87.288,87.258,3.68249682]
[1773264149667,2.75813655,87.279,87.224,3.68249682]
[1773264149874,2.75813655,87.269,87.224,3.68249682]
[1773264150171,8.68269183,87.268,87.224,3.68249682]
[1773264150370,8.68269183,87.267,87.224,3.68249682]
[1773264150587,2.75813655,87.269,87.224,3.68249682]
[1773264150873,8.68617517,87.268,87.224,3.68249682]
[1773264151169,8.68617517,87.267,87.224,3.68249682]
[1773264151368,2.75478359,87.279,87.241,10.315]
[1773264151568,8.68768471,87.278,87.242,3.83901989]
[1773264151769,8.68768471,87.277,87.242,3.83901989]
[1773264152076,8.68768471,87.276,87.242,3.83901989]
[1773264152376,8.68768471,87.275,87.243,10.315]
[1773264152570,8.68768471,87.274,87.243,10.315]
[1773264152771,8.68768471,87.273,87.243,10.315]
[1773264153070,8.68768471,87.272,87.243,10.315]
[1773264153274,8.68768471,87.271,87.243,10.315]
[1773264153569,8.68768471,87.27,87.243,10.315]
[1773264153771,8.68768471,87.269,87.243,10.315]
[1773264153972,8.68768471,87.268,87.243,10.315]
[1773264154173,2.75478359,87.279,87.243,10.315]
[1773264154374,8.68907208,87.278,87.243,10.315]
[1773264154573,8.68907208,87.277,87.243,10.315]
[1773264154791,8.68907208,87.276,87.243,10.315]
[1773264154972,8.68907208,87.275,87.243,10.315]
[1773264155172,8.68907208,87.274,87.243,10.315]
[1773264155371,8.68907208,87.273,87.243,10.315]
[1773264155571,8.68907208,87.272,87.243,10.315]
[1773264155773,8.68907208,87.271,87.243,10.315]
[1773264155971,8.68907208,87.27,87.243,10.315]
[1773264156176,8.68907208,87.269,87.243,10.315]
[1773264156375,8.68907208,87.268,87.243,10.315]
[1773264156676,2.75478359,87.279,87.243,10.315]
[1773264156976,8.6892,87.278,87.243,10.315]
[1773264157175,8.6892,87.277,87.243,10.315]
[1773264157375,8.6892,87.276,87.243,10.315]
[1773264157576,8.6892,87.275,87.243,10.315]
[1773264157773,8.6892,87.274,87.243,10.315]
[1773264157975,8.6892,87.273,87.243,10.315]
[1773264158177,8.6892,87.272,87.243,10.315]
[1773264158377,8.6892,87.271,87.243,10.315]
[1773264158677,8.6892,87.27,87.243,10.315]
[1773264158977,8.6892,87.269,87.243,10.315]
[1773264159177,8.71655471,87.268,87.243,10.315]
[1773264159376,2.75478359,87.279,87.243,10.315]
[1773264159572,8.71655471,87.278,87.243,10.315]
[1773264159773,8.71655471,87.277,87.243,10.315]
[1773264159973,8.71655471,87.276,87.243,14.15401989]
[1773264160173,8.71655471,87.275,87.244,3.83901989]
[1773264160374,8.71655471,87.274,87.244,3.83901989]
[1773264160579,8.71655471,87.273,87.244,3.83901989]
[1773264160779,8.71655471,87.272,87.244,3.83901989]
[1773264160980,8.71655471,87.271,87.244,3.83901989]
[1773264161179,8.71655471,87.27,87.244,3.83901989]
[1773264161481,8.71655471,87.269,87.244,3.83901989]
[1773264161679,8.71655471,87.268,87.244,3.83901989]
[1773264161880,2.75478359,87.279,87.244,3.83901989]
[1773264162082,8.71679476,87.278,87.244,3.83901989]
[1773264162277,2.75478359,87.279,87.244,3.83901989]
[1773264162278,8.71679476,87.277,87.244,3.83901989]
[1773264162480,8.71679476,87.276,87.244,3.83901989]
[1773264162781,8.71679476,87.275,87.244,3.83901989]
[1773264162981,8.71679476,87.274,87.244,3.83901989]
[1773264163280,8.71679476,87.273,87.244,3.83901989]
[1773264163481,8.71679476,87.272,87.244,3.83901989]
[1773264163678,8.71679476,87.271,87.244,3.83901989]
[1773264163877,8.71679476,87.27,87.244,3.83901989]
[1773264164077,2.69754272,87.268,87.211,4.00908891]
[1773264164274,14.15618807,87.316,87.211,4.00908891]
[1773264164275,2.69754272,87.259,87.211,4.00908891]
[1773264165376,2.69754272,87.259,87.227,10.317]
[1773264165576,2.69754272,87.259,87.227,14.32608891]
[1773264166183,2.69754272,87.259,87.228,4.00908891]
[1773264171785,2.69754272,87.259,87.229,14.19746455]
[1773264172686,2.69754272,87.259,87.23,3.88046455]
[1773264173787,2.45088769,87.25,87.221,14.19846455]
[1773264174583,2.45088769,87.25,87.221,3.88046455]
[1773264177483,2.69687668,87.255,87.221,3.88046455]
[1773264182098,2.45088769,87.25,87.221,3.88046455]
[1773264182695,2.52075979,87.239,87.207,10.319]
[1773264182892,2.45088769,87.24,87.207,3.88046455]
[1773264183098,2.52075979,87.249,87.207,3.88046455]
[1773264183493,2.52075979,87.249,87.214,3.88046455]
[1773264183697,8.7086748,87.254,87.214,3.88046455]
[1773264183899,8.7086748,87.253,87.214,3.88046455]
[1773264184194,10.314,87.255,87.214,3.88046455]
[1773264184195,8.7086748,87.252,87.214,3.88046455]
[1773264184394,8.7086748,87.254,87.22,3.88046455]
[1773264184590,8.7086748,87.253,87.22,3.88046455]
[1773264184796,8.7086748,87.252,87.22,3.88046455]
[1773264185099,8.7086748,87.254,87.22,3.88046455]
[1773264185301,8.7086748,87.253,87.22,3.88046455]
[1773264185601,8.7086748,87.252,87.222,3.88046455]
[1773264185801,2.52075979,87.259,87.222,3.88046455]
[1773264185802,8.7086748,87.258,87.222,3.88046455]
[1773264186102,8.7086748,87.257,87.222,3.88046455]
[1773264186399,8.7086748,87.256,87.222,3.88046455]
[1773264186600,8.7086748,87.255,87.222,3.88046455]
[1773264186802,8.7086748,87.254,87.222,3.88046455]
[1773264187002,8.7086748,87.253,87.222,3.88046455]
[1773264187201,8.7086748,87.252,87.222,3.88046455]
[1773264187406,8.7086748,87.258,87.223,14.19746455]
[1773264187703,8.7086748,87.257,87.223,14.19746455]
[1773264187903,8.7086748,87.256,87.224,3.88046455]
[1773264188205,8.7086748,87.255,87.224,3.88046455]
[1773264188398,8.7086748,87.254,87.224,3.88046455]
[1773264188604,11.25942234,87.258,87.224,3.88046455]
[1773264188807,8.7086748,87.257,87.224,3.88046455]
[1773264189100,8.7086748,87.256,87.224,3.88046455]
[1773264189305,8.7086748,87.255,87.224,3.88046455]
[1773264189503,8.7086748,87.254,87.224,3.88046455]
[1773264189704,8.7086748,87.253,87.224,3.88046455]
[1773264189897,8.7086748,87.257,87.224,3.88046455]
[1773264190097,8.7086748,87.256,87.224,3.88046455]
[1773264190295,8.7086748,87.255,87.224,3.88046455]
[1773264190500,8.7086748,87.254,87.224,3.88046455]
[1773264190701,8.7086748,87.253,87.224,3.88046455]
[1773264190902,8.7086748,87.252,87.224,3.88046455]
[1773264191098,8.7086748,87.257,87.224,3.88046455]
[1773264191296,8.7086748,87.256,87.224,3.88046455]
[1773264191603,8.7086748,87.255,87.225,10.317]
[1773264191805,8.7086748,87.254,87.225,10.317]
[1773264192006,8.7086748,87.253,87.225,10.317]
[1773264192305,8.7086748,87.252,87.225,10.317]
[1773264192505,8.7086748,87.251,87.225,10.317]
[1773264192805,2.55074754,87.258,87.225,10.317]
[1773264193006,8.64667303,87.257,87.225,10.317]
[1773264193211,8.64667303,87.256,87.225,10.317]
[1773264193509,8.64667303,87.255,87.225,10.317]
[1773264193698,8.64667303,87.254,87.225,10.317]
[1773264193905,8.64667303,87.253,87.225,10.317]
[1773264194099,8.64667303,87.252,87.225,10.317]
[1773264194304,8.64667303,87.251,87.225,10.317]
[1773264194504,8.64667303,87.25,87.225,10.317]
[1773264194710,8.64667303,87.249,87.225,10.317]
[1773264194911,2.55089492,87.254,87.225,10.317]
[1773264195202,8.65165624,87.253,87.225,10.317]
[1773264195407,8.65165624,87.252,87.225,10.317]
[1773264195605,8.65165624,87.251,87.225,10.317]
[1773264195805,8.65165624,87.25,87.225,10.317]
[1773264196106,8.65165624,87.249,87.225,10.317]
[1773264196307,2.55089492,87.254,87.225,10.317]
[1773264196505,8.65165435,87.253,87.225,10.317]
[1773264196716,8.65165435,87.252,87.225,10.317]
[1773264196909,8.65165435,87.251,87.225,10.317]
[1773264197204,8.65165435,87.25,87.224,3.88046455]
[1773264197508,8.65165435,87.249,87.224,3.88046455]
[1773264197809,2.55089492,87.254,87.224,3.88046455]
[1773264198011,8.65178756,87.253,87.224,3.88046455]
[1773264198210,8.65178756,87.252,87.224,3.88046455]
[1773264198411,8.65178756,87.251,87.224,3.88046455]
[1773264198610,8.65178756,87.25,87.224,3.88046455]
[1773264198910,8.65178756,87.249,87.224,3.88046455]
[1773264199210,8.65231214,87.248,87.224,3.88046455]
[1773264199408,2.55089492,87.254,87.224,3.88046455]
[1773264199606,8.65231214,87.253,87.224,3.88046455]
[1773264199806,8.65231214,87.252,87.224,3.88046455]
[1773264200111,8.65231214,87.251,87.224,3.88046455]
[1773264200309,8.65231214,87.25,87.224,3.88046455]
[1773264200519,8.65231214,87.249,87.224,3.88046455]
[1773264200706,8.65231214,87.248,87.224,3.88046455]
[1773264200902,2.55089492,87.254,87.224,3.88046455]
[1773264201101,8.65270881,87.253,87.224,3.88046455]
[1773264201320,8.65270881,87.252,87.224,3.88046455]
[1773264201509,8.65270881,87.251,87.224,3.88046455]
[1773264201712,8.65270881,87.25,87.224,3.88046455]
[1773264201909,8.65270881,87.249,87.224,3.88046455]
[1773264202112,2.55089492,87.254,87.224,3.88046455]
[1773264202113,8.65270881,87.248,87.224,3.88046455]
[1773264202308,2.55089492,87.254,87.224,3.88046455]
[1773264202508,8.65379525,87.253,87.224,3.88046455]
[1773264202710,8.65379525,87.252,87.224,3.88046455]
[1773264202908,8.65379525,87.251,87.224,3.88046455]
[1773264203110,8.65379525,87.25,87.224,3.88046455]
[1773264203307,8.65379525,87.249,87.224,3.88046455]
[1773264203512,8.65379525,87.248,87.224,3.88046455]
[1773264203713,8.65379525,87.247,87.224,3.88046455]
[1773264203915,2.55089492,87.254,87.224,3.88046455]
[1773264204212,2.45237165,87.25,87.224,3.88046455]
[1773264204516,8.65449792,87.249,87.224,3.88046455]
[1773264204714,8.65449792,87.248,87.217,10.318]
[1773264204914,8.65449792,87.247,87.217,10.318]
[1773264205115,2.45237165,87.25,87.217,10.318]
[1773264205306,8.65623379,87.249,87.217,10.318]
[1773264205510,8.65623379,87.248,87.217,10.318]
[1773264205716,8.65623379,87.247,87.217,10.318]
[1773264205918,4.94286194,87.25,87.217,10.318]
[1773264206217,8.65623379,87.249,87.217,10.318]
[1773264206417,8.65623379,87.248,87.217,10.318]
[1773264206618,8.65623379,87.247,87.217,10.318]
[1773264206818,8.65623379,87.246,87.217,10.318]
[1773264207117,4.94286194,87.25,87.217,10.318]
[1773264207310,8.65731936,87.249,87.217,10.318]
[1773264207513,8.65731936,87.248,87.217,10.318]
[1773264207715,8.65731936,87.247,87.217,10.318]
[1773264207914,8.65731936,87.246,87.217,10.318]
[1773264208212,8.66002658,87.245,87.217,10.318]
[1773264208515,8.66016324,87.244,87.217,10.318]
[1773264208709,4.94286194,87.25,87.217,10.318]
[1773264208913,2.48140253,87.239,87.211,10.319]
[1773264209220,2.48140253,87.237,87.211,10.319]
[1773264209423,8.66002658,87.236,87.211,10.319]
[1773264209618,2.48140253,87.237,87.211,10.319]
[1773264209922,8.66088615,87.236,87.211,10.319]
[1773264210122,2.48140253,87.237,87.211,10.319]
[1773264210315,8.66031862,87.236,87.211,10.319]
[1773264210619,2.48140253,87.237,87.211,10.319]
[1773264210922,8.66032063,87.236,87.211,10.319]
[1773264211123,2.48140253,87.237,87.211,10.319]
[1773264211322,8.65988642,87.236,87.211,10.319]
[1773264211515,2.48140253,87.237,87.211,10.319]
[1773264211716,8.65988642,87.236,87.211,10.319]
[1773264211912,2.48140253,87.237,87.211,10.319]
[1773264212321,8.65957733,87.236,87.211,10.319]
[1773264212622,2.48140253,87.237,87.211,10.319]
[1773264212821,8.65958125,87.236,87.211,10.319]
[1773264213116,2.48140253,87.237,87.211,10.319]
[1773264213317,8.65937876,87.236,87.211,10.319]
[1773264213620,2.48140253,87.237,87.211,10.319]
[1773264213921,8.65937876,87.236,87.211,10.319]
[1773264214121,2.48140253,87.237,87.211,10.319]
[1773264214423,8.65929213,87.236,87.211,10.319]
[1773264214625,2.48140253,87.237,87.211,10.319]
[1773264214818,8.65929213,87.236,87.211,10.319]
[1773264215017,2.48140253,87.237,87.211,10.319]
[1773264215220,8.6593321,87.236,87.211,10.319]
[1773264215415,2.48140253,87.237,87.211,10.319]
[1773264215620,8.6593321,87.236,87.211,10.319]
[1773264215820,2.48140253,87.237,87.211,10.319]
[1773264216321,8.65949254,87.236,87.211,10.319]
[1773264216522,2.48140253,87.237,87.211,10.319]
[1773264216724,8.65949254,87.236,87.211,10.319]
[1773264217028,2.48140253,87.237,87.211,10.319]
[1773264217213,8.65978334,87.236,87.211,10.319]
[1773264217525,2.48140253,87.237,87.211,10.319]
[1773264217719,8.65978334,87.236,87.211,10.319]
[1773264217919,2.48140253,87.237,87.211,10.319]
[1773264218116,8.65979117,87.236,87.211,10.319]
[1773264218320,2.48140253,87.237,87.211,10.319]
[1773264218521,8.66782144,87.236,87.211,10.319]
[1773264218716,2.48140253,87.237,87.211,10.319]
[1773264218927,8.66782144,87.236,87.211,10.319]
[1773264219120,2.48140253,87.237,87.211,10.319]
[1773264219327,8.66792998,87.236,87.211,10.319]
[1773264219522,2.48140253,87.237,87.211,10.319]
[1773264219724,2.45237165,87.22,87.192,3.8162144]
[1773264219923,2.44134606,87.223,87.192,3.8162144]
[1773264226628,2.44134606,87.223,87.193,10.321]
[1773264226826,2.44134606,87.223,87.194,3.82330306]
[1773264227430,2.43045462,87.234,87.202,3.82330306]
[1773264227727,8.66223772,87.233,87.202,3.82330306]
[1773264228032,2.43045462,87.234,87.202,3.82330306]
[1773264228230,8.66196638,87.233,87.202,3.82330306]
[1773264228431,2.43045462,87.234,87.202,3.82330306]
[1773264228630,8.66196638,87.233,87.202,3.82330306]
[1773264228931,2.43045462,87.234,87.202,3.82330306]
[1773264229726,14.44,87.249,87.204,3.82330306]
[1773264229933,2.43073657,87.255,87.204,3.82330306]
[1773264230232,2.43092829,87.253,87.212,3.80500357]
[1773264230428,8.65957076,87.252,87.212,3.80500357]
[1773264230630,2.43092829,87.253,87.212,3.80500357]
[1773264230829,8.65930978,87.252,87.212,3.80500357]
[1773264231131,2.43092829,87.253,87.212,3.80500357]
[1773264231431,8.65904754,87.252,87.212,3.80500357]
[1773264231625,2.43092829,87.253,87.212,3.80500357]
[1773264231827,8.65904763,87.252,87.212,3.80500357]
[1773264232027,2.43092829,87.253,87.212,3.80500357]
[1773264232222,8.65880166,87.252,87.212,3.80500357]
[1773264232522,2.43092829,87.253,87.212,3.80500357]
[1773264232724,11.13701693,87.252,87.212,3.80500357]
[1773264232922,2.47821527,87.252,87.212,3.80500357]
[1773264238436,2.47821527,87.252,87.212,3.80500357]
[1773264239037,2.47821527,87.252,87.215,3.80500357]
[1773264239336,16.92981029,87.257,87.215,3.80500357]
[1773264239530,8.65701237,87.256,87.215,3.80500357]
[1773264239735,8.65701237,87.255,87.215,3.80500357]
[1773264239935,8.65701237,87.254,87.215,3.80500357]
[1773264240143,2.48981029,87.257,87.225,3.80500357]
[1773264240342,2.48981029,87.257,87.177,20.646]
[1773264240343,8.65575562,87.269,87.231,3.80500357]
[1773264240642,2.48981029,87.286,87.231,3.80500357]
[1773264240840,2.48448831,87.284,87.231,3.80500357]
[1773264241039,2.48448831,87.282,87.231,3.80500357]
[1773264241242,2.48448831,87.28,87.231,3.80500357]
[1773264241442,2.48448831,87.279,87.233,3.80500357]
[1773264242343,2.48448831,87.279,87.236,3.80500357]
[1773264243440,2.48448831,87.279,87.238,3.80500357]
[1773264244445,2.50463147,87.276,87.238,3.80500357]
[1773264245442,12.85731498,87.274,87.238,3.80500357]
[1773264247847,10.31,87.288,87.245,3.80500357]
[1773264248044,4.99742153,87.29,87.245,3.80500357]
[1773264248045,2.54504988,87.289,87.245,3.80500357]
[1773264249455,10.31,87.283,87.245,3.80500357]
[1773264250151,12.88780858,87.283,87.245,3.80500357]
[1773264254558,2.65064567,87.279,87.236,14.12100357]
[1773264254757,2.65064567,87.279,87.237,3.80500357]
[1773264255352,2.65385043,87.277,87.237,3.80500357]
[1773264256359,2.65385043,87.275,87.237,3.80500357]
[1773264259655,2.65385043,87.275,87.239,10.315]
[1773264259855,2.65385043,87.275,87.241,3.80500357]
[1773264262458,2.65385043,87.275,87.244,10.315]
[1773264265163,2.65385043,87.275,87.244,14.18704875]
[1773264266559,2.65385043,87.275,87.244,3.87204875]
[1773264269668,2.65385043,87.275,87.245,10.315]
[1773264271366,2.65385043,87.275,87.245,14.18704875]
[1773264272363,8.71547023,87.292,87.25,2.45110186]
[1773264272569,8.71547023,87.296,87.261,3.87204875]
[1773264272873,2.64924315,87.297,87.261,3.87204875]
[1773264273164,8.71547023,87.304,87.27,3.87204875]
[1773264273367,8.71547023,87.303,87.27,3.87204875]
[1773264273671,2.63477244,87.306,87.27,3.87204875]
[1773264273865,8.71547023,87.305,87.27,3.87204875]
[1773264274065,8.71547023,87.304,87.27,3.87204875]
[1773264274268,8.72381741,87.305,87.27,3.87204875]
[1773264274476,2.63477244,87.306,87.27,3.87204875]
[1773264274768,8.72381741,87.305,87.27,3.87204875]
[1773264274968,2.63477244,87.306,87.27,3.87204875]
[1773264275171,8.72381528,87.305,87.27,3.87204875]
[1773264275471,8.72381528,87.305,87.271,14.18404875]
[1773264275670,8.72381528,87.305,87.272,3.87204875]
[1773264276164,2.63477244,87.306,87.272,3.87204875]
[1773264276370,8.72255515,87.305,87.272,3.87204875]
[1773264277172,2.63477244,87.306,87.272,3.87204875]
[1773264277373,8.72379206,87.305,87.272,3.87204875]
[1773264278163,2.63477244,87.306,87.272,3.87204875]
[1773264278368,8.72379083,87.305,87.272,3.87204875]
[1773264278568,8.72379083,87.304,87.272,3.87204875]
[1773264278764,2.63477244,87.306,87.272,3.87204875]
[1773264278972,8.76816548,87.305,87.272,3.87204875]
[1773264279172,8.76816548,87.304,87.272,3.87204875]
[1773264279375,2.63477244,87.306,87.272,3.87204875]
[1773264279674,8.76975072,87.305,87.272,3.87204875]
[1773264279876,8.76975072,87.304,87.272,3.87204875]
[1773264280074,8.77159973,87.303,87.272,3.87204875]
[1773264280266,2.63477244,87.306,87.272,3.87204875]
[1773264280470,8.77045179,87.305,87.272,3.87204875]
[1773264280673,8.77045179,87.304,87.272,3.87204875]
[1773264280872,2.62273323,87.301,87.262,3.92811048]
[1773264281075,2.62273323,87.299,87.262,3.92811048]
[1773264281372,2.62273323,87.298,87.262,3.92811048]
[1773264282472,12.93173323,87.296,87.262,3.92811048]
[1773264282977,2.62273323,87.296,87.262,3.92811048]
[1773264284074,10.309,87.295,87.262,3.92811048]
[1773264287279,2.6612268,87.306,87.262,3.92811048]
[1773264287492,2.6612268,87.304,87.262,3.92811048]
[1773264287683,11.43808386,87.303,87.262,3.92811048]
[1773264287884,11.43808386,87.302,87.262,3.92811048]
[1773264288082,8.77685706,87.301,87.262,3.92811048]
[1773264288283,8.77685706,87.3,87.262,3.92811048]
[1773264288482,8.77685706,87.299,87.263,3.92811048]
[1773264288683,2.6612268,87.302,87.263,3.92811048]
[1773264288882,8.77638999,87.301,87.263,3.92811048]
[1773264289182,8.77638999,87.3,87.263,3.92811048]
[1773264289382,8.77638999,87.299,87.263,3.92811048]
[1773264289582,2.6612268,87.302,87.263,3.92811048]
[1773264289784,8.77624731,87.301,87.263,3.92811048]
[1773264290084,8.77624731,87.3,87.263,3.92811048]
[1773264290276,8.77624731,87.299,87.263,3.92811048]
[1773264290481,2.6612268,87.302,87.263,3.92811048]
[1773264290784,8.77618078,87.301,87.263,3.92811048]
[1773264291080,2.6612268,87.302,87.265,4.00501435]
[1773264292386,2.6612268,87.302,87.267,14.31701435]
[1773264292986,2.6612268,87.302,87.268,4.00501435]
[1773264296779,0.00092163,87.319,87.281,4.00501435]
[1773264296984,2.65993589,87.334,87.291,4.00501435]
[1773264297386,2.65993589,87.328,87.291,4.00501435]
[1773264298489,10.305,87.327,87.291,4.00501435]
[1773264299884,12.92105957,87.327,87.291,4.00501435]
[1773264302294,10.304,87.334,87.301,4.00501435]
[1773264306289,14.42,87.343,87.25,14.44]
[1773264306290,2.46176438,87.328,87.291,4.00501435]
[1773264307500,10.305,87.326,87.291,4.00501435]
[1773264316713,12.75395538,87.326,87.291,4.00501435]
[1773264320416,0.57295426,87.313,87.291,4.00501435]
[1773264320913,0.57295426,87.313,87.293,3.95033659]
[1773264322822,2.92712289,87.313,87.284,3.95033659]
[1773264323022,0.57295426,87.313,87.284,3.95033659]
[1773264331223,0.57295426,87.313,87.286,3.95033659]
[1773264331423,0.00095426,87.313,87.29,6.39807878]
[1773264331723,0.00095426,87.313,87.291,3.95033659]
[1773264332427,0.00095426,87.313,87.295,3.95033659]
[1773264337629,18.93904863,87.342,87.301,3.95033659]
[1773264337816,8.63604863,87.341,87.301,3.95033659]
[1773264338020,8.63604863,87.34,87.301,3.95033659]
[1773264338222,8.63823504,87.339,87.301,3.95033659]
[1773264338422,10.303,87.342,87.304,3.95033659]
[1773264338623,8.62331738,87.341,87.304,3.95033659]
[1773264338821,8.62331738,87.34,87.304,3.95033659]
[1773264339022,8.62331738,87.339,87.304,3.95033659]
[1773264339216,12.66654635,87.342,87.304,3.95033659]
[1773264339416,8.62603506,87.341,87.304,3.95033659]
[1773264339621,8.62603506,87.34,87.304,3.95033659]
[1773264339928,8.62603506,87.339,87.304,3.95033659]
[1773264340126,8.62603506,87.338,87.304,3.95033659]
[1773264340328,8.62951986,87.337,87.304,3.95033659]
[1773264340626,8.62951986,87.336,87.304,3.95033659]
[1773264340822,12.66654635,87.342,87.304,3.95033659]
[1773264341025,8.62951986,87.341,87.304,3.95033659]
[1773264341326,8.62951986,87.34,87.304,3.95033659]
[1773264341524,8.62951986,87.339,87.304,3.95033659]
[1773264341725,12.66654635,87.342,87.304,3.95033659]
[1773264341726,8.62951986,87.338,87.304,3.95033659]
[1773264342024,8.62951986,87.337,87.304,3.95033659]
[1773264342326,8.62951986,87.336,87.304,3.95033659]